[Event "*** Titled Tuesday Blitz"]
[Site "Chess.com"]
[Date "2018.09.04"]
[Round "8"]
[White "GMKrikor"]
[Black "tteshan"]
[Result "1-0"]
[WhiteElo "2756"]
[BlackElo "2078"]
[TimeControl "180+2"]
[EndTime "15:24:18 PDT"]
[Termination "GMKrikor won by resignation"]

1. e4 {[%clk 0:03:01.9]} 1... c5 {[%clk 0:03:01.1]} 2. Nf3 {[%clk 0:03:02.9]}
2... Nc6 {[%clk 0:03:02.1]} 3. Bb5 {[%clk 0:03:03.6]} 3... e6 {[%clk 0:03:02.2]}
4. O-O {[%clk 0:03:02.9]} 4... Nge7 {[%clk 0:02:58.7]} 5. d4 {[%clk 0:03:04]}
5... cxd4 {[%clk 0:02:58.1]} 6. Nxd4 {[%clk 0:03:05.9]} 6... a6 {[%clk
0:02:58.2]} 7. Be2 {[%clk 0:02:37.6]} 7... d6 {[%clk 0:02:56.5]} 8. Nb3 {[%clk
0:02:07.9]} 8... b5 {[%clk 0:02:54.8]} 9. a4 {[%clk 0:02:08.3]} 9... b4 {[%clk
0:02:53.2]} 10. a5 {[%clk 0:02:09.5]} 10... Bb7 {[%clk 0:02:48.8]} 11. N1d2
{[%clk 0:02:09.7]} 11... Ng6 {[%clk 0:02:37.8]} 12. Nc4 {[%clk 0:02:09.7]} 12...
Be7 {[%clk 0:02:30.6]} 13. Be3 {[%clk 0:02:03.9]} 13... O-O {[%clk 0:02:24]} 14.
f4 {[%clk 0:01:52.3]} 14... Qb8 {[%clk 0:02:04.7]} 15. Nb6 {[%clk 0:01:52.3]}
15... Rd8 {[%clk 0:01:56.4]} 16. Nxa8 {[%clk 0:01:51.9]} 16... Qxa8 {[%clk
0:01:56.4]} 17. Bb6 {[%clk 0:01:40.2]} 17... Rc8 {[%clk 0:01:51.6]} 18. Bd3
{[%clk 0:01:32]} 18... Nb8 {[%clk 0:01:37.8]} 19. Qe2 {[%clk 0:01:30.2]} 19...
Nd7 {[%clk 0:01:36.1]} 20. Kh1 {[%clk 0:01:21.8]} 20... Nf6 {[%clk 0:01:27.4]}
21. Rae1 {[%clk 0:01:20.9]} 21... e5 {[%clk 0:01:25]} 22. fxe5 {[%clk
0:01:18.8]} 22... dxe5 {[%clk 0:01:23.2]} 23. Nd2 {[%clk 0:00:53.7]} 23... Nf4
{[%clk 0:01:20.2]} 24. Qe3 {[%clk 0:00:53.2]} 24... Nxd3 {[%clk 0:00:58]} 25.
cxd3 {[%clk 0:00:54.2]} 25... Bc6 {[%clk 0:00:52]} 26. Nc4 {[%clk 0:00:51.3]}
26... Qb8 {[%clk 0:00:50]} 27. b3 {[%clk 0:00:47.6]} 27... Be8 {[%clk
0:00:42.7]} 28. Qg3 {[%clk 0:00:44.8]} 28... Nd7 {[%clk 0:00:41.9]} 29. Be3
{[%clk 0:00:39.6]} 29... f6 {[%clk 0:00:42]} 30. d4 {[%clk 0:00:36.8]} 30...
exd4 {[%clk 0:00:36.1]} 31. Qxb8 {[%clk 0:00:37.1]} 31... Nxb8 {[%clk
0:00:36.3]} 32. Bxd4 {[%clk 0:00:38.7]} 32... Bf7 {[%clk 0:00:31.7]} 33. Rc1
{[%clk 0:00:38.2]} 33... Nd7 {[%clk 0:00:29.6]} 34. Nb6 {[%clk 0:00:33.2]} 34...
Nxb6 {[%clk 0:00:21.4]} 35. axb6 {[%clk 0:00:33.3]} 35... Rb8 {[%clk 0:00:21.5]}
36. Rf3 {[%clk 0:00:27.8]} 36... Kf8 {[%clk 0:00:21.2]} 37. Rc7 {[%clk
0:00:28.1]} 37... Bd6 {[%clk 0:00:20.7]} 38. Rd7 {[%clk 0:00:29.6]} 38... Rc8
{[%clk 0:00:15.5]} 39. Rxd6 {[%clk 0:00:29.1]} 1-0

[Event "*** Titled Tuesday Blitz"]
[Site "Chess.com"]
[Date "2018.09.04"]
[Round "8"]
[White "Kurai"]
[Black "volcanoexplorer"]
[Result "1-0"]
[WhiteElo "2444"]
[BlackElo "2315"]
[TimeControl "180+2"]
[EndTime "15:24:39 PDT"]
[Termination "Kurai won by checkmate"]

1. e4 {[%clk 0:03:01.9]} 1... e5 {[%clk 0:03:00.6]} 2. Nf3 {[%clk 0:03:02.8]}
2... Nc6 {[%clk 0:03:01.4]} 3. Bb5 {[%clk 0:03:02.8]} 3... a6 {[%clk 0:03:02.1]}
4. Ba4 {[%clk 0:03:04.2]} 4... Nf6 {[%clk 0:03:02.6]} 5. O-O {[%clk 0:03:05.4]}
5... Be7 {[%clk 0:03:04.1]} 6. Re1 {[%clk 0:03:06.5]} 6... b5 {[%clk 0:03:05]}
7. Bb3 {[%clk 0:03:08.1]} 7... O-O {[%clk 0:03:06.5]} 8. a3 {[%clk 0:03:06.2]}
8... d5 {[%clk 0:02:54]} 9. exd5 {[%clk 0:03:06.6]} 9... Nxd5 {[%clk 0:02:55.9]}
10. Nxe5 {[%clk 0:03:07.7]} 10... Nxe5 {[%clk 0:02:57.6]} 11. Rxe5 {[%clk
0:03:09.1]} 11... c6 {[%clk 0:02:59.2]} 12. Nc3 {[%clk 0:03:10.6]} 12... Bd6
{[%clk 0:02:56.5]} 13. Re1 {[%clk 0:03:06.4]} 13... Nf6 {[%clk 0:02:03.6]} 14.
h3 {[%clk 0:03:02]} 14... c5 {[%clk 0:01:56.1]} 15. d3 {[%clk 0:03:02.6]} 15...
Bb7 {[%clk 0:01:51]} 16. Bg5 {[%clk 0:03:03.3]} 16... h6 {[%clk 0:01:41.6]} 17.
Bh4 {[%clk 0:02:59.5]} 17... g5 {[%clk 0:01:23.2]} 18. Bg3 {[%clk 0:03:00.3]}
18... Bxg3 {[%clk 0:01:24.1]} 19. fxg3 {[%clk 0:03:02.2]} 19... Qd4+ {[%clk
0:01:24.5]} 20. Kh2 {[%clk 0:03:01.8]} 20... Rae8 {[%clk 0:01:14.3]} 21. Rxe8
{[%clk 0:02:44]} 21... Rxe8 {[%clk 0:01:16.2]} 22. Qf1 {[%clk 0:02:44.8]} 22...
Re7 {[%clk 0:01:03.9]} 23. Re1 {[%clk 0:02:44.2]} 23... Rxe1 {[%clk 0:00:57.4]}
24. Qxe1 {[%clk 0:02:46.1]} 24... c4 {[%clk 0:00:58.7]} 25. dxc4 {[%clk
0:02:42.7]} 25... bxc4 {[%clk 0:00:59.6]} 26. Ba4 {[%clk 0:02:37.8]} 26... g4
{[%clk 0:00:49.8]} 27. h4 {[%clk 0:02:35.6]} 27... Be4 {[%clk 0:00:32.1]} 28.
Qe2 {[%clk 0:02:30.1]} 28... Bf5 {[%clk 0:00:29.8]} 29. Bc6 {[%clk 0:02:28.3]}
29... Kg7 {[%clk 0:00:29.4]} 30. Bb7 {[%clk 0:02:14.1]} 30... Nh5 {[%clk
0:00:29.7]} 31. Be4 {[%clk 0:02:04.3]} 31... Be6 {[%clk 0:00:29.6]} 32. Bb7
{[%clk 0:01:50.6]} 32... Bf5 {[%clk 0:00:24.7]} 33. Bd5 {[%clk 0:01:15.9]} 33...
Qb6 {[%clk 0:00:18.2]} 34. Qe5+ {[%clk 0:01:12.7]} 34... Qf6 {[%clk 0:00:17.9]}
35. Qxf6+ {[%clk 0:01:09.7]} 35... Nxf6 {[%clk 0:00:19.5]} 36. Bxc4 {[%clk
0:01:11.2]} 36... Nd7 {[%clk 0:00:20.8]} 37. Bxa6 {[%clk 0:01:04.8]} 37... Bxc2
{[%clk 0:00:21.2]} 38. Kg1 {[%clk 0:00:58.5]} 38... Nc5 {[%clk 0:00:21.6]} 39.
Be2 {[%clk 0:00:58.9]} 39... Nb3 {[%clk 0:00:22.1]} 40. Bxg4 {[%clk 0:00:57.5]}
40... Bd3 {[%clk 0:00:21.8]} 41. Bd1 {[%clk 0:00:57.2]} 41... Na5 {[%clk
0:00:21.3]} 42. b4 {[%clk 0:00:51.4]} 42... Nc4 {[%clk 0:00:22.1]} 43. a4 {[%clk
0:00:52.8]} 43... Nb2 {[%clk 0:00:20.1]} 44. Kf2 {[%clk 0:00:51.7]} 44... Bc4
{[%clk 0:00:18.8]} 45. Be2 {[%clk 0:00:50.5]} 45... Bb3 {[%clk 0:00:18.4]} 46.
a5 {[%clk 0:00:50.1]} 46... Bc4 {[%clk 0:00:17.8]} 47. b5 {[%clk 0:00:49.3]}
47... Bxe2 {[%clk 0:00:17.6]} 48. Kxe2 {[%clk 0:00:50.6]} 48... Nc4 {[%clk
0:00:18.9]} 49. a6 {[%clk 0:00:49.3]} 49... Nb6 {[%clk 0:00:19.6]} 50. Ke3
{[%clk 0:00:49.3]} 50... Kf8 {[%clk 0:00:20.6]} 51. Kd4 {[%clk 0:00:50.4]} 51...
Ke7 {[%clk 0:00:21.9]} 52. Nd5+ {[%clk 0:00:51.6]} 52... Nxd5 {[%clk 0:00:22.6]}
53. Kxd5 {[%clk 0:00:53.5]} 53... Kd7 {[%clk 0:00:24.1]} 54. b6 {[%clk 0:00:54]}
54... Kc8 {[%clk 0:00:25.1]} 55. Kc6 {[%clk 0:00:54.5]} 55... Kb8 {[%clk
0:00:27]} 56. g4 {[%clk 0:00:53.8]} 56... f5 {[%clk 0:00:27.9]} 57. g5 {[%clk
0:00:53.3]} 57... h5 {[%clk 0:00:29.8]} 58. g6 {[%clk 0:00:54.1]} 58... f4
{[%clk 0:00:31.5]} 59. g7 {[%clk 0:00:55.6]} 59... Kc8 {[%clk 0:00:33.2]} 60.
g8=R# {[%clk 0:00:55.9]} 1-0

[Event "*** Titled Tuesday Blitz"]
[Site "Chess.com"]
[Date "2018.09.04"]
[Round "8"]
[White "GadimbayliA"]
[Black "Kriari"]
[Result "1-0"]
[WhiteElo "2691"]
[BlackElo "2806"]
[TimeControl "180+2"]
[EndTime "15:25:00 PDT"]
[Termination "GadimbayliA won by checkmate"]

1. e4 {[%clk 0:03:01.9]} 1... e5 {[%clk 0:03:00.9]} 2. Nf3 {[%clk 0:03:01.4]}
2... Nc6 {[%clk 0:03:02.8]} 3. Bb5 {[%clk 0:03:01.6]} 3... Nf6 {[%clk
0:03:03.4]} 4. O-O {[%clk 0:03:01.6]} 4... Nxe4 {[%clk 0:03:04.2]} 5. Re1 {[%clk
0:03:02.8]} 5... Nd6 {[%clk 0:03:05.1]} 6. Nxe5 {[%clk 0:03:03.5]} 6... Be7
{[%clk 0:03:06.3]} 7. Bf1 {[%clk 0:03:03.6]} 7... O-O {[%clk 0:03:03.6]} 8. d4
{[%clk 0:03:04.1]} 8... Nf5 {[%clk 0:03:04.8]} 9. c3 {[%clk 0:03:04.2]} 9...
Nxe5 {[%clk 0:02:55]} 10. dxe5 {[%clk 0:03:01.8]} 10... d5 {[%clk 0:02:53.5]}
11. exd6 {[%clk 0:02:57.7]} 11... Bxd6 {[%clk 0:02:51.6]} 12. Nd2 {[%clk
0:02:59.6]} 12... Qh4 {[%clk 0:02:39.9]} 13. g3 {[%clk 0:02:53.4]} 13... Qd8
{[%clk 0:02:34.3]} 14. Bg2 {[%clk 0:02:51.1]} 14... Re8 {[%clk 0:02:33.8]} 15.
Rxe8+ {[%clk 0:02:48.3]} 15... Qxe8 {[%clk 0:02:35.7]} 16. Nc4 {[%clk
0:02:48.6]} 16... Bc5 {[%clk 0:02:24.3]} 17. b4 {[%clk 0:02:35]} 17... Be6
{[%clk 0:02:09.1]} 18. Na5 {[%clk 0:01:42.7]} 18... Rd8 {[%clk 0:02:04]} 19. Qe1
{[%clk 0:01:29.2]} 19... Bb6 {[%clk 0:01:37.8]} 20. Nxb7 {[%clk 0:01:15.6]}
20... Rb8 {[%clk 0:01:07]} 21. Bf4 {[%clk 0:01:14.3]} 21... h6 {[%clk
0:00:58.9]} 22. Qe2 {[%clk 0:01:10.7]} 22... Qa4 {[%clk 0:00:48.6]} 23. h4
{[%clk 0:01:01.6]} 23... Qa3 {[%clk 0:00:45.2]} 24. Qc2 {[%clk 0:00:53.3]} 24...
Re8 {[%clk 0:00:38]} 25. Re1 {[%clk 0:00:49.7]} 25... g6 {[%clk 0:00:30.1]} 26.
Re2 {[%clk 0:00:42]} 26... Qa6 {[%clk 0:00:26.7]} 27. a4 {[%clk 0:00:40]} 27...
Qc4 {[%clk 0:00:26.8]} 28. a5 {[%clk 0:00:38.9]} 28... g5 {[%clk 0:00:23]} 29.
hxg5 {[%clk 0:00:37.8]} 29... hxg5 {[%clk 0:00:24.9]} 30. Be5 {[%clk 0:00:38.2]}
30... Bd5 {[%clk 0:00:08.4]} 31. Bxd5 {[%clk 0:00:35.8]} 31... Qxd5 {[%clk
0:00:10.3]} 32. Qxf5 {[%clk 0:00:37.1]} 32... Qd1+ {[%clk 0:00:09.7]} 33. Kg2
{[%clk 0:00:34.2]} 33... Qd5+ {[%clk 0:00:07.4]} 34. f3 {[%clk 0:00:34.7]} 34...
Be3 {[%clk 0:00:06.2]} 35. Qe4 {[%clk 0:00:28.6]} 35... Qxe5 {[%clk 0:00:05.4]}
36. Rxe3 {[%clk 0:00:27.8]} 36... Qxe4 {[%clk 0:00:03.4]} 37. Rxe4 {[%clk
0:00:28.3]} 37... Rb8 {[%clk 0:00:05.3]} 38. Nc5 {[%clk 0:00:28.5]} 38... Kg7
{[%clk 0:00:07.2]} 39. Re7 {[%clk 0:00:28.1]} 39... Kg6 {[%clk 0:00:08.7]} 40.
Rxc7 {[%clk 0:00:28.8]} 40... Rd8 {[%clk 0:00:10.6]} 41. Rc6+ {[%clk 0:00:29.1]}
41... Kh5 {[%clk 0:00:11.2]} 42. Ne4 {[%clk 0:00:29.9]} 42... f5 {[%clk
0:00:11.1]} 43. Nf6+ {[%clk 0:00:28.9]} 43... Kg6 {[%clk 0:00:12.3]} 44. Nd5+
{[%clk 0:00:29.9]} 44... Kh5 {[%clk 0:00:13.7]} 45. c4 {[%clk 0:00:30.8]} 45...
a6 {[%clk 0:00:13.4]} 46. Rxa6 {[%clk 0:00:29.6]} 46... g4 {[%clk 0:00:09.9]}
47. fxg4+ {[%clk 0:00:29.5]} 47... fxg4 {[%clk 0:00:09.8]} 48. Nf4+ {[%clk
0:00:28.7]} 48... Kg5 {[%clk 0:00:11.1]} 49. Ne6+ {[%clk 0:00:30.6]} 49... Kf5
{[%clk 0:00:08.8]} 50. Nxd8 {[%clk 0:00:31.2]} 50... Kg5 {[%clk 0:00:10.7]} 51.
b5 {[%clk 0:00:33.1]} 51... Kh5 {[%clk 0:00:11.7]} 52. b6 {[%clk 0:00:34.4]}
52... Kg5 {[%clk 0:00:13.2]} 53. b7 {[%clk 0:00:35.9]} 53... Kh5 {[%clk
0:00:14.5]} 54. b8=Q {[%clk 0:00:36.6]} 54... Kg5 {[%clk 0:00:15.9]} 55. Qe5#
{[%clk 0:00:37.5]} 1-0

[Event "*** Titled Tuesday Blitz"]
[Site "Chess.com"]
[Date "2018.09.04"]
[Round "8"]
[White "Marcus_Harvey"]
[Black "Faqade"]
[Result "0-1"]
[WhiteElo "2679"]
[BlackElo "2502"]
[TimeControl "180+2"]
[EndTime "15:25:03 PDT"]
[Termination "Faqade won by resignation"]

1. Nf3 {[%clk 0:03:01.6]} 1... Nf6 {[%clk 0:02:59.7]} 2. b3 {[%clk 0:03:03.5]}
2... g6 {[%clk 0:03:00.9]} 3. Bb2 {[%clk 0:03:05.4]} 3... Bg7 {[%clk 0:03:02.4]}
4. e3 {[%clk 0:03:07.3]} 4... O-O {[%clk 0:03:03.5]} 5. Be2 {[%clk 0:03:08.9]}
5... d6 {[%clk 0:03:05]} 6. O-O {[%clk 0:03:10.5]} 6... e5 {[%clk 0:03:06]} 7.
d4 {[%clk 0:03:12.1]} 7... e4 {[%clk 0:03:07.3]} 8. Nfd2 {[%clk 0:03:13.6]} 8...
d5 {[%clk 0:03:08.6]} 9. c4 {[%clk 0:03:15.2]} 9... c6 {[%clk 0:03:09.9]} 10.
Nc3 {[%clk 0:03:16.8]} 10... h5 {[%clk 0:03:09.9]} 11. cxd5 {[%clk 0:03:17.9]}
11... cxd5 {[%clk 0:03:11.7]} 12. Ba3 {[%clk 0:03:19.1]} 12... Re8 {[%clk
0:03:12.4]} 13. Nb5 {[%clk 0:03:20.7]} 13... Re6 {[%clk 0:03:13.1]} 14. Rc1
{[%clk 0:03:18.1]} 14... Nc6 {[%clk 0:03:13.9]} 15. h3 {[%clk 0:03:05.3]} 15...
Nh7 {[%clk 0:03:13.4]} 16. Re1 {[%clk 0:03:02.3]} 16... Ng5 {[%clk 0:03:09.5]}
17. Nf1 {[%clk 0:02:59.2]} 17... Rf6 {[%clk 0:03:06]} 18. Nh2 {[%clk 0:02:52.1]}
18... a6 {[%clk 0:03:02.5]} 19. Nc3 {[%clk 0:02:52.2]} 19... Bxh3 {[%clk
0:03:03.4]} 20. Nxd5 {[%clk 0:02:49.6]} 20... Be6 {[%clk 0:02:28.8]} 21. Nf4
{[%clk 0:02:46.4]} 21... Nxd4 {[%clk 0:02:17.3]} 22. Bb2 {[%clk 0:02:33]} 22...
Nxe2+ {[%clk 0:01:46.8]} 23. Qxe2 {[%clk 0:02:17.4]} 23... Rf5 {[%clk
0:01:47.6]} 24. Red1 {[%clk 0:02:16.4]} 24... Qe7 {[%clk 0:01:48.6]} 25. Bxg7
{[%clk 0:02:15.7]} 25... Kxg7 {[%clk 0:01:50.5]} 26. Qb2+ {[%clk 0:02:05.3]}
26... Kh7 {[%clk 0:01:50.7]} 27. Qd4 {[%clk 0:01:50.6]} 27... Ra5 {[%clk
0:01:42.8]} 28. a4 {[%clk 0:01:49.2]} 28... Bxb3 {[%clk 0:01:41.7]} 29. Rd2
{[%clk 0:01:45.5]} 29... Rxa4 {[%clk 0:01:42]} 30. Qb6 {[%clk 0:01:16.3]} 30...
Qb4 {[%clk 0:01:40.9]} 31. Rd6 {[%clk 0:00:55.6]} 31... a5 {[%clk 0:01:05.6]}
32. Rxg6 {[%clk 0:00:52.1]} 32... Qxb6 {[%clk 0:01:04.8]} 33. Rxb6 {[%clk
0:00:52.5]} 33... Rb4 {[%clk 0:01:06.7]} 34. Rxb4 {[%clk 0:00:43.7]} 34... axb4
{[%clk 0:01:08.6]} 35. Nxh5 {[%clk 0:00:30.9]} 35... b5 {[%clk 0:01:07.9]} 36.
Nf1 {[%clk 0:00:26]} 36... Bc4 {[%clk 0:01:05.2]} 37. Nd2 {[%clk 0:00:26.4]}
37... b3 {[%clk 0:01:06.7]} 38. Kh2 {[%clk 0:00:19.4]} 38... Rd8 {[%clk
0:00:53.9]} 39. Nxc4 {[%clk 0:00:19.5]} 39... Rc8 {[%clk 0:00:53.4]} 40. Nf6+
{[%clk 0:00:20.4]} 40... Kg7 {[%clk 0:00:51.4]} 41. Ne8+ {[%clk 0:00:21.6]}
41... Rxe8 {[%clk 0:00:49.6]} 42. Nd6 {[%clk 0:00:22.9]} 42... Rd8 {[%clk
0:00:46.1]} 43. Nf5+ {[%clk 0:00:24]} 43... Kf6 {[%clk 0:00:46.1]} 44. Nd4
{[%clk 0:00:25.5]} 44... Ne6 {[%clk 0:00:42.3]} 45. Nxb5 {[%clk 0:00:20.4]}
45... Rd2 {[%clk 0:00:41.9]} 46. Kg3 {[%clk 0:00:21.7]} 46... b2 {[%clk
0:00:41.8]} 47. Rb1 {[%clk 0:00:22.4]} 47... Nc5 {[%clk 0:00:42.7]} 48. Nc3
{[%clk 0:00:22.7]} 48... Ke5 {[%clk 0:00:42.7]} 49. Nd1 {[%clk 0:00:21.9]} 49...
Nd3 {[%clk 0:00:43.1]} 50. f4+ {[%clk 0:00:14.8]} 50... exf3 {[%clk 0:00:45]}
51. gxf3 {[%clk 0:00:15.9]} 51... Rxd1 {[%clk 0:00:32.6]} 52. Rxd1 {[%clk
0:00:17]} 52... Nc1 {[%clk 0:00:32.3]} 53. f4+ {[%clk 0:00:17.5]} 53... Ke6
{[%clk 0:00:31.8]} 54. f5+ {[%clk 0:00:17.5]} 54... Ke5 {[%clk 0:00:32.3]} 55.
Rd7 {[%clk 0:00:18.5]} 55... b1=Q {[%clk 0:00:31.6]} 56. Rxf7 {[%clk 0:00:20.4]}
56... Ne2+ {[%clk 0:00:31.2]} 0-1

[Event "*** Titled Tuesday Blitz"]
[Site "Chess.com"]
[Date "2018.09.04"]
[Round "8"]
[White "metra93"]
[Black "ulises2013"]
[Result "1-0"]
[WhiteElo "2511"]
[BlackElo "2580"]
[TimeControl "180+2"]
[EndTime "15:25:07 PDT"]
[Termination "metra93 won on time"]

1. e4 {[%clk 0:03:01.6]} 1... g6 {[%clk 0:02:49.5]} 2. d4 {[%clk 0:02:52.9]}
2... Bg7 {[%clk 0:02:50.2]} 3. c4 {[%clk 0:02:48.1]} 3... c5 {[%clk 0:02:49]} 4.
d5 {[%clk 0:02:48.3]} 4... d6 {[%clk 0:02:48.9]} 5. Nc3 {[%clk 0:02:45.4]} 5...
Nf6 {[%clk 0:02:41]} 6. Nf3 {[%clk 0:02:45.3]} 6... O-O {[%clk 0:02:39.4]} 7.
Be2 {[%clk 0:02:45.6]} 7... Bg4 {[%clk 0:02:32.5]} 8. h3 {[%clk 0:02:41.9]} 8...
Bxf3 {[%clk 0:02:31]} 9. Bxf3 {[%clk 0:02:43.7]} 9... Nbd7 {[%clk 0:02:30.6]}
10. O-O {[%clk 0:02:44.6]} 10... a6 {[%clk 0:02:28.3]} 11. Be2 {[%clk
0:02:42.9]} 11... Rb8 {[%clk 0:02:25.1]} 12. a4 {[%clk 0:02:37.8]} 12... b6
{[%clk 0:02:22.1]} 13. Bg5 {[%clk 0:02:31.4]} 13... Ne8 {[%clk 0:02:15.2]} 14.
Qd2 {[%clk 0:02:29.9]} 14... Nc7 {[%clk 0:02:10.2]} 15. Kh1 {[%clk 0:02:25.2]}
15... Re8 {[%clk 0:01:50.7]} 16. f4 {[%clk 0:02:21.7]} 16... Rb7 {[%clk
0:01:49.4]} 17. f5 {[%clk 0:02:19.9]} 17... Ne5 {[%clk 0:01:48.2]} 18. b3 {[%clk
0:02:10.1]} 18... Qb8 {[%clk 0:01:40.1]} 19. g4 {[%clk 0:01:48.4]} 19... Qd8
{[%clk 0:01:20.1]} 20. Be3 {[%clk 0:01:41.3]} 20... e6 {[%clk 0:01:13.7]} 21.
fxe6 {[%clk 0:01:34.1]} 21... fxe6 {[%clk 0:01:14.7]} 22. Bg5 {[%clk 0:01:34.4]}
22... Qd7 {[%clk 0:01:13.2]} 23. Rae1 {[%clk 0:01:29]} 23... Kh8 {[%clk
0:00:50.7]} 24. Kg2 {[%clk 0:01:25.7]} 24... b5 {[%clk 0:00:49.1]} 25. axb5
{[%clk 0:01:21.3]} 25... axb5 {[%clk 0:00:49.2]} 26. cxb5 {[%clk 0:01:23.2]}
26... exd5 {[%clk 0:00:45.4]} 27. exd5 {[%clk 0:01:25.1]} 27... Ra8 {[%clk
0:00:42.5]} 28. Bf6 {[%clk 0:01:21.7]} 28... Ra3 {[%clk 0:00:37.1]} 29. Bxg7+
{[%clk 0:01:14.9]} 29... Kxg7 {[%clk 0:00:31.9]} 30. Qb2 {[%clk 0:01:16.8]}
30... Ra8 {[%clk 0:00:30.2]} 31. Bc4 {[%clk 0:01:14.4]} 31... Re8 {[%clk
0:00:30.6]} 32. Ne4 {[%clk 0:01:12.3]} 32... Nxb5 {[%clk 0:00:27.8]} 33. Nxc5
{[%clk 0:00:48.1]} 33... dxc5 {[%clk 0:00:29.6]} 34. Rxe5 {[%clk 0:00:48.6]}
34... Nd4 {[%clk 0:00:30.2]} 35. Qf2 {[%clk 0:00:23.5]} 35... h6 {[%clk
0:00:05.8]} 36. Qf6+ {[%clk 0:00:20.6]} 36... Kh7 {[%clk 0:00:06.7]} 37. Bd3
{[%clk 0:00:14.2]} 37... Rg8 {[%clk 0:00:03.2]} 38. Rfe1 {[%clk 0:00:15]} 38...
Rg7 {[%clk 0:00:04.3]} 39. d6 {[%clk 0:00:11.2]} 39... Qf7 {[%clk 0:00:04.5]}
40. Qxf7 {[%clk 0:00:12.2]} 40... Rgxf7 {[%clk 0:00:05.9]} 41. Re7 {[%clk
0:00:13.3]} 41... Kg7 {[%clk 0:00:06]} 42. Bc4 {[%clk 0:00:10.2]} 42... Rfxe7
{[%clk 0:00:03.7]} 43. Rxe7+ {[%clk 0:00:11.8]} 43... Rxe7 {[%clk 0:00:02.9]}
44. dxe7 {[%clk 0:00:13.7]} 1-0

[Event "*** Titled Tuesday Blitz"]
[Site "Chess.com"]
[Date "2018.09.04"]
[Round "8"]
[White "maciek_92"]
[Black "colemman"]
[Result "1-0"]
[WhiteElo "2666"]
[BlackElo "2459"]
[TimeControl "180+2"]
[EndTime "15:25:07 PDT"]
[Termination "maciek_92 won by resignation"]

1. c4 {[%clk 0:03:01.9]} 1... c6 {[%clk 0:03:00.3]} 2. g3 {[%clk 0:03:01]} 2...
Nf6 {[%clk 0:03:01.5]} 3. Bg2 {[%clk 0:03:01.2]} 3... d5 {[%clk 0:03:02.9]} 4.
b3 {[%clk 0:03:02.7]} 4... e5 {[%clk 0:02:59.9]} 5. Bb2 {[%clk 0:03:01.6]} 5...
dxc4 {[%clk 0:02:59.8]} 6. Bxe5 {[%clk 0:02:49.9]} 6... cxb3 {[%clk 0:02:59.4]}
7. axb3 {[%clk 0:02:51.8]} 7... Nbd7 {[%clk 0:02:57.7]} 8. Bb2 {[%clk
0:02:50.8]} 8... Bc5 {[%clk 0:02:56.6]} 9. Nf3 {[%clk 0:02:51.6]} 9... O-O
{[%clk 0:02:57.5]} 10. O-O {[%clk 0:02:50.2]} 10... Re8 {[%clk 0:02:57.7]} 11.
d4 {[%clk 0:02:43.3]} 11... Bb6 {[%clk 0:02:57.9]} 12. Nc3 {[%clk 0:02:40.6]}
12... Nf8 {[%clk 0:02:58.4]} 13. Na4 {[%clk 0:02:38.3]} 13... Bc7 {[%clk
0:02:55.8]} 14. Qd3 {[%clk 0:02:35.9]} 14... Qe7 {[%clk 0:02:39.9]} 15. Ne5
{[%clk 0:02:20.7]} 15... Ne6 {[%clk 0:02:32]} 16. f4 {[%clk 0:02:10.5]} 16...
Nf8 {[%clk 0:02:23.4]} 17. e4 {[%clk 0:02:06.7]} 17... Rd8 {[%clk 0:02:18.9]}
18. Qc3 {[%clk 0:01:45.6]} 18... Ne6 {[%clk 0:02:14.6]} 19. Rad1 {[%clk
0:01:43.5]} 19... Bd7 {[%clk 0:02:08.6]} 20. d5 {[%clk 0:01:29.3]} 20... cxd5
{[%clk 0:02:08.6]} 21. exd5 {[%clk 0:01:29.7]} 21... Bxa4 {[%clk 0:02:09.3]} 22.
dxe6 {[%clk 0:01:23.8]} 22... Be8 {[%clk 0:01:58.1]} 23. exf7+ {[%clk
0:01:19.9]} 23... Bxf7 {[%clk 0:01:58.5]} 24. Nxf7 {[%clk 0:01:19.3]} 24... Qxf7
{[%clk 0:01:59.7]} 25. Bf3 {[%clk 0:01:13.2]} 25... Rac8 {[%clk 0:01:56.1]} 26.
Kg2 {[%clk 0:01:13.3]} 26... Bb6 {[%clk 0:01:42.7]} 27. Rxd8+ {[%clk 0:01:13.4]}
27... Rxd8 {[%clk 0:01:44]} 28. Rd1 {[%clk 0:00:51.9]} 28... Rxd1 {[%clk
0:01:41]} 29. Bxd1 {[%clk 0:00:53.8]} 29... Qd7 {[%clk 0:01:21.4]} 30. Be2
{[%clk 0:00:47.6]} 30... h5 {[%clk 0:01:20.2]} 31. Qd3 {[%clk 0:00:37]} 31...
Qe7 {[%clk 0:01:10.8]} 32. Bf3 {[%clk 0:00:35.6]} 32... Qc5 {[%clk 0:00:57.9]}
33. Bxf6 {[%clk 0:00:27.3]} 33... gxf6 {[%clk 0:00:54.4]} 34. Qg6+ {[%clk
0:00:27.8]} 34... Kf8 {[%clk 0:00:52]} 35. Qxf6+ {[%clk 0:00:29]} 35... Kg8
{[%clk 0:00:50.6]} 36. Qg5+ {[%clk 0:00:17.5]} 36... Qxg5 {[%clk 0:00:49.1]} 37.
fxg5 {[%clk 0:00:19.4]} 37... Bd8 {[%clk 0:00:43]} 38. h4 {[%clk 0:00:20]} 38...
b5 {[%clk 0:00:42.7]} 39. Be2 {[%clk 0:00:17.2]} 39... a6 {[%clk 0:00:37.3]} 40.
Bxh5 {[%clk 0:00:18.5]} 40... a5 {[%clk 0:00:37.8]} 41. Be8 {[%clk 0:00:19.7]}
41... b4 {[%clk 0:00:34.7]} 42. Bg6 {[%clk 0:00:19.4]} 42... Bc7 {[%clk
0:00:35.2]} 43. Bd3 {[%clk 0:00:20.5]} 43... Kg7 {[%clk 0:00:36.2]} 44. Kf3
{[%clk 0:00:21]} 44... Bb6 {[%clk 0:00:35.6]} 45. Kg4 {[%clk 0:00:21.3]} 45...
Bf2 {[%clk 0:00:35.9]} 46. h5 {[%clk 0:00:22]} 46... Be1 {[%clk 0:00:36.1]} 47.
h6+ {[%clk 0:00:22.4]} 47... Kh8 {[%clk 0:00:36.5]} 48. g6 {[%clk 0:00:20.9]}
48... Bc3 {[%clk 0:00:33.7]} 49. Bc4 {[%clk 0:00:21.7]} 49... Bd4 {[%clk
0:00:31.1]} 50. Kf5 {[%clk 0:00:22.8]} 50... Bb2 {[%clk 0:00:31]} 51. Ke6 {[%clk
0:00:21.9]} 51... Bc1 {[%clk 0:00:27.4]} 52. g7+ {[%clk 0:00:21.4]} 52... Kh7
{[%clk 0:00:26.7]} 53. Kf5 {[%clk 0:00:20]} 53... Kxh6 {[%clk 0:00:26.5]} 54.
g8=Q {[%clk 0:00:21.9]} 1-0